Cogmind - Beta 12 @@@ ROGUE MODE // 2023.12.15 @ 19:24:23 // Winter2022/Polymind Player: deepledi Result: Self-destructed Performance ------------- Evolutions (3) 1500 Regions Visited (5) 1000 Robots Destroyed (15) 75 Value Destroyed (565) 565 Prototype IDs (0) 0 Alien Tech Used (0) 0 Bonus (2189) 2189 TOTAL SCORE: 5309 Bonus ------- Polymind Skill 1989 Pacifist 200 Cogmind --------- Core Integrity 700/700 Matter 0/0 Energy 215/215 System Corruption 0% Temperature Cool (0) Movement Treading (160) Location -7/Factory Parts ------- > --- POWER (1) -------- Reinforced Ion Engine > --- PROPULSION (2) --- Light Treads > --- UTILITY (1) ------ (None) > --- WEAPON (1) ------- Hammer > --- INVENTORY (1) ---- (None) Peak State ------------ > --- POWER ------------ Improved Ion Engine > --- PROPULSION ------- Light Treads Light Treads > --- UTILITY ---------- Heat Sink Heat Sink Light Armor Plating > --- WEAPON ----------- Beam Rifle Heavy Assault Rifle > --- INVENTORY -------- (None) [Rating: 11] Favorites ----------- Power Improved Ion Engine Engine Improved Ion Engine Propulsion Light Treads Treads Light Treads Hover Unit Hover Unit Utility Heat Sink Device Heat Sink Processor Visual Processing Unit Protection Light Armor Plating Weapon Beam Rifle Energy Gun Beam Rifle Ballistic Gun Heavy Assault Rifle Impact Weapon Hammer Build | -11 -10 -10 -9 -8 -7 ------- Run | Jun Mat Min Mat Mat Fac Slots Evolved . | . . . . . . Power . | . . . . . . Propulsion . | . . . . . . Utility . | . . . . . . Weapon . | . . . . . . Parts Attached . | . . . . . . Power . | . . . . . . Engine . | . . . . . . Core . | . . . . . . Reactor . | . . . . . . Propulsion . | . . . . . . Treads . | . . . . . . Leg . | . . . . . . Wheel . | . . . . . . Hover . | . . . . . . Flight . | . . . . . . Utility . | . . . . . . Device . | . . . . . . Storage . | . . . . . . Processor . | . . . . . . Hackware . | . . . . . . Protection . | . . . . . . Artifact . | . . . . . . Weapon . | . . . . . . Energy Gun . | . . . . . . Energy Cannon . | . . . . . . Ballistic Gun . | . . . . . . Ballistic Cannon . | . . . . . . Launcher . | . . . . . . Special Weapon . | . . . . . . Impact Weapon . | . . . . . . Slashing Weapon . | . . . . . . Piercing Weapon . | . . . . . . Special Melee Weapon . | . . . . . . Unidentified Prototypes . | . . . . . . Parts Lost 2 | . . . . 2 . Power . | . . . . . . Propulsion 1 | . . . . 1 . Utility 1 | . . . . 1 . Weapon . | . . . . . . Highest Loss Streak 1 | . . . . 1 . To Critical Strikes . | . . . . . . Average Slot Usage (%) 97 | . 77 100 100 96 60 Engine 12 | . 12 16 12 13 20 Treads 23 | . . . 24 27 20 Hover 2 | . 25 33 . . . Device 22 | . 12 16 24 19 . Processor 2 | . 25 33 . . . Protection 10 | . . . 11 10 . Energy Gun 10 | . . . 11 9 . Ballistic Gun 10 | . . . 11 9 . Impact Weapon 1 | . . . . 4 20 Naked Turns 29 | . 27 . 1 1 . Heaviest Build 18 | . 4 4 18 18 12 Greatest Support 40 | 3 12 12 40 40 20 Greatest Overweight (x) . | . . . . . . Average Overweight (x) . | . . . . . . Largest Inventory Capacity 1 | . . . 1 1 1 Average Capacity . | . . . . . 1 Most Carried . | . . . . . . Average Carried . | . . . . . . Final Capacity 1 | . . . 1 1 1 Final Carried . | . . . . . . Class Distribution -------------------- 85% | Sentry 7% | Watcher 6% | Brawler Dominant Class ---------------- Watcher | -10/Materials Watcher | -10/Mines Sentry | -9/Materials Sentry | -8/Materials Brawler | -7/Factory Resources | -11 -10 -10 -9 -8 -7 ----------- Run | Jun Mat Min Mat Mat Fac Matter Collected 72 | . . . 66 6 . Remotely . | . . . . . . Salvage Created 804 | . . . 427 377 . Parts 29 | . . . 20 9 . Haulers Intercepted 1 | . . . . 1 . Recyclers Shooed 1 | . . . 1 . . Parts Field Recycled . | . . . . . . Retrieved Matter . | . . . . . . Parts Self-Destructed . | . . . . . . Prevented . | . . . . . . Kills | -11 -10 -10 -9 -8 -7 ------- Run | Jun Mat Min Mat Mat Fac Combat Hostiles Destroyed 12 | . . . 8 4 . Melee 2 | . . . . 2 . Guns 9 | . . . 8 1 . Classes Destroyed 4 | . . . 3 1 . Hauler 1 | . . . . 1 . Watcher 2 | . . . 1 1 . Grunt 7 | . . . 5 2 . Sentry 5 | . . . 3 2 . Best Kill Streak 3 | . . . 2 3 . Combat Bots Only 2 | . . . 2 2 . Max Kills in Single Turn 1 | . . . 1 1 . Gunslinging . | . . . . . . Exploded . | . . . . . . Melee 1 | . . . . 1 . Uniques/NPCs Destroyed . | . . . . . . Combat | -11 -10 -10 -9 -8 -7 -------- Run | Jun Mat Min Mat Mat Fac Damage Taken 799 | . . . 250 549 . Core 112 | . . . 16 96 . Absorbed by Shields . | . . . . . . Core Remaining (%) 94 | 100 . 100 96 82 . Volleys Fired 23 | . . . 21 2 . Largest 2 | . . . 2 2 . Hottest 79 | . . . 79 79 . Shots Fired 46 | . . . 42 4 . Gun 46 | . . . 42 4 . Cannon . | . . . . . . Launcher . | . . . . . . Special . | . . . . . . Kinetic 23 | . . . 21 2 . Thermal 23 | . . . 21 2 . Explosive . | . . . . . . Electromagnetic . | . . . . . . Robot Hit Streak 8 | . . . 8 4 . Robot Miss Streak 4 | . . . 4 . . Penetration Max . | . . . . . . Secondary Targets . | . . . . . . Shots Hit Robots 42 | . . . 24 18 . Core Hits 21 | . . . 15 6 . Critical Kills 1 | . . . . 1 . Critical Parts Destroyed 2 | . . . . 2 . Critical Strikes 7 | . . . 4 3 . Burn 4 | . . . 4 . . Smash 3 | . . . . 3 . Melee Attacks 17 | . . . . 17 . Impact 17 | . . . . 17 . Slashing . | . . . . . . Piercing . | . . . . . . Sneak Attacks 2 | . . . . 2 . Combat Hostiles 1 | . . . . 1 . Follow-up Attacks . | . . . . . . Damage Inflicted 853 | . . . 378 475 . Guns 421 | . . . 376 45 . Cannons . | . . . . . . Explosions . | . . . . . . Melee 430 | . . . . 430 . Ramming 2 | . . . 2 . . Kinetic 198 | . . . 183 15 . Thermal 223 | . . . 193 30 . Explosive . | . . . . . . Electromagnetic . | . . . . . . Impact 430 | . . . . 430 . Slashing . | . . . . . . Piercing . | . . . . . . Highest Corruption . | . . . . . . Average Corruption . | . . . . . . Corruption Purged . | . . . . . . Corruption Blocked . | . . . . . . Overload Shots . | . . . . . . Overflow Damage 91 | . . . . 91 . Projectiles . | . . . . . . Explosions . | . . . . . . Melee 91 | . . . . 91 . Knockbacks 3 | . . . . 3 . Impact 3 | . . . . 3 . Kinetic . | . . . . . . Secondary . | . . . . . . Self-Inflicted Damage . | . . . . . . Shots . | . . . . . . Rammed 1 | . . . 1 . . Targets Rammed 1 | . . . 1 . . Kicked . | . . . . . . Crushed . | . . . . . . Highest Temperature 85 | . . . 20 85 . Average Temperature 26 | . . . 9 37 . Received Heat Transfer 402 | . . . 141 261 . Siege Activations . | . . . . . . Robots Corrupted . | . . . . . . Combat Hostiles . | . . . . . . Parts Fried 1 | . . . . 1 . Impact Corruptions 5 | . . . . 5 . Robots Melted . | . . . . . . Combat Hostiles . | . . . . . . Parts Melted 2 | . . . 2 . . Heat Transferred 851 | . . . 777 74 . Parts Sabotaged . | . . . . . . Parts Stolen . | . . . . . . Parts Stripped . | . . . . . . Power Chain Reactions . | . . . . . . Missiles Intercepted . | . . . . . . Alert | -11 -10 -10 -9 -8 -7 ------- Run | Jun Mat Min Mat Mat Fac Peak Influence 180 | . 62 24 174 180 15 Initial 60 | . . 24 9 60 15 Average 38 | . 15 24 35 68 15 Maximum Alert Level . | . . . . . . Low Security (%) 100 | 100 100 100 100 100 100 Level 1 . | . . . . . . Level 2 . | . . . . . . Level 3 . | . . . . . . Level 4 . | . . . . . . Level 5 . | . . . . . . High Security . | . . . . . . Max Security . | . . . . . . Squads Dispatched 2 | . . . 1 1 . Investigation . | . . . . . . Extermination . | . . . . . . Reinforcement 2 | . . . 1 1 . Assault . | . . . . . . Garrison . | . . . . . . Intercept . | . . . . . . Searches Triggered . | . . . . . . Construction Impeded . | . . . . . . Haulers Reinforced . | . . . . . . Active Scanning Responses . | . . . . . . Cargo Convoy Interrupts . | . . . . . . Stealth | -11 -10 -10 -9 -8 -7 --------- Run | Jun Mat Min Mat Mat Fac Distress Signals 1 | . . . . 1 . Communications Jammed . | . . . . . . Distress Signals . | . . . . . . Times Spotted 22 | . 2 . 10 10 . Peak Tracking Total 5 | . 1 . 4 5 . Tactical Retreats 1 | . . . . 1 . Traps | -11 -10 -10 -9 -8 -7 ------- Run | Jun Mat Min Mat Mat Fac Traps Triggered 1 | . 1 . . . . Indirectly . | . . . . . . Trap Hack Attempts . | . . . . . . Triggered . | . . . . . . Disarmed . | . . . . . . Reprogrammed . | . . . . . . Reused . | . . . . . . Traps Extracted . | . . . . . . Installed . | . . . . . . Triggered . | . . . . . . Machines | -11 -10 -10 -9 -8 -7 ---------- Run | Jun Mat Min Mat Mat Fac Machines Disabled 2 | . . . 2 . . Max in Single Turn 1 | . . . 1 . . Machines Repaired . | . . . . . . Machines Sabotaged . | . . . . . . Overloaded Fab Kills . | . . . . . . Hacking | -11 -10 -10 -9 -8 -7 --------- Run | Jun Mat Min Mat Mat Fac Machines Accessed 1 | . 1 . . . . Terminals 1 | . 1 . . . . Fabricators . | . . . . . . Repair Stations . | . . . . . . Recycling Units . | . . . . . . Scanalyzers . | . . . . . . Garrison Access . | . . . . . . Total Hacks 2 | . 2 . . . . Successful 1 | . 1 . . . . Failed 1 | . 1 . . . . Catastrophic . | . . . . . . Database Lockouts . | . . . . . . Manual 2 | . 2 . . . . Terminals 2 | . 2 . . . . Fabricators . | . . . . . . Repair Stations . | . . . . . . Recycling Units . | . . . . . . Scanalyzers . | . . . . . . Garrison Access . | . . . . . . Terminal Hacks . | . . . . . . Fabricator Hacks . | . . . . . . Repair Station Hacks . | . . . . . . Recycling Unit Hacks . | . . . . . . Scanalyzer . | . . . . . . Garrison Access Hacks . | . . . . . . Unauthorized Hacks 1 | . 1 . . . . Terminals 1 | . 1 . . . . Botnet 1 | . 1 . . . . Fabricators . | . . . . . . Repair Stations . | . . . . . . Recycling Units . | . . . . . . Scanalyzers . | . . . . . . Garrison Access . | . . . . . . Data Cores Recovered . | . . . . . . Used . | . . . . . . Hacking Detections 1 | . 1 . . . . Full Trace Events . | . . . . . . Feedback Events . | . . . . . . Feedback Blocked . | . . . . . . Robot Schematics Acquired . | . . . . . . Robots Built . | . . . . . . Authchips . | . . . . . . Time . | . . . . . . Total Robot Build Rating . | . . . . . . Part Schematics Acquired . | . . . . . . Parts Built . | . . . . . . Authchips . | . . . . . . Time . | . . . . . . Total Part Build Rating . | . . . . . . Parts Repaired . | . . . . . . Time . | . . . . . . Parts Recycled . | . . . . . . Recycled Matter . | . . . . . . Retrieved Matter . | . . . . . . Retrieved Components . | . . . . . . Parts Scanalyzed . | . . . . . . Part Schematics Acquired . | . . . . . . Parts Damaged . | . . . . . . Bothacking | -11 -10 -10 -9 -8 -7 ------------ Run | Jun Mat Min Mat Mat Fac Used RIF Installer . | . . . . . . Robots Hacked 3 | . 1 . 1 1 . Non-combat 1 | . 1 . . . . Combat 2 | . . . 1 1 . Robot Hacks Applied 5 | . 2 . 1 2 . map_route 1 | . 1 . . . . mark_security 1 | . 1 . . . . find_shortcuts 2 | . . . 1 1 . find_garrison 1 | . . . . 1 . Relay Couplers Released . | . . . . . . Fabnet Peak Effective % . | . . . . . . Robots Rewired . | . . . . . . Allies Hacked . | . . . . . . Hacks Repelled . | . . . . . . Allies | -11 -10 -10 -9 -8 -7 -------- Run | Jun Mat Min Mat Mat Fac Total Allies 1 | . . 1 . . . Largest Group 1 | . . 1 . . . Highest-Rated Group 31 | . . 31 . . . Highest-Rated Ally 31 | . . 31 . . . Total Orders . | . . . . . . Ally Attacks . | . . . . . . Total Damage . | . . . . . . Kills . | . . . . . . Allies Corrupted . | . . . . . . Allies Melted . | . . . . . . Intel | -11 -10 -10 -9 -8 -7 ------- Run | Jun Mat Min Mat Mat Fac Robot Analysis Total 3 | . 1 . 1 1 . Derelict Logs Recovered . | . . . . . . Drone Launches . | . . . . . . Drone Recoveries . | . . . . . . Exploration | -11 -10 -10 -9 -8 -7 ------------- Run | Jun Mat Min Mat Mat Fac Turns Passed 2887 | 11 93 112 2146 449 76 Spaces Moved 1003 | 21 162 177 380 216 47 Core 69 | 21 46 . 2 . . Treads 595 | . . . 332 216 47 Legs . | . . . . . . Wheels . | . . . . . . Hover 339 | . 116 177 46 . . Flight . | . . . . . . Fastest Speed 50 | 50 50 56 50 160 160 Average Speed 117 | 50 54 56 146 160 160 Slowest Speed 160 | 50 56 56 160 160 160 Overloaded Moves . | . . . . . . Propulsion Burnouts . | . . . . . . Robots Hopped . | . . . . . . Cave-ins Triggered . | . . . . . . Exploration Rate (%) 26 | 3 41 51 35 26 2 Regions Visited 5 Branch Regions 1 Pre-discovered Areas . | . . . . . . Known Exits Taken 2 | . 1 1 . . . Unknown Exits Taken 3 | 1 . . 1 1 . Scrap Searched 2 | . . 2 . . . Spaces Dug . | . . . . . . Terrain Destroyed . | . . . . . . Melee . | . . . . . . Projectile . | . . . . . . AOE . | . . . . . . Terrain Rammed . | . . . . . . Walls Destroyed . | . . . . . . Machines Disabled . | . . . . . . Actions | -11 -10 -10 -9 -8 -7 --------- Run | Jun Mat Min Mat Mat Fac Total 2634 | 20 166 189 1926 286 47 Wait 1595 | . 5 13 1525 52 . Move 998 | 20 161 176 379 215 47 Hop . | . . . . . . Pick Up . | . . . . . . Fast Attach . | . . . . . . Attach . | . . . . . . Detach . | . . . . . . Swap . | . . . . . . Drop . | . . . . . . Fire 23 | . . . 21 2 . Melee 17 | . . . . 17 . Ram . | . . . . . . Kick . | . . . . . . Crush 1 | . . . 1 . . Escape Stasis . | . . . . . . Rewire . | . . . . . . Trap . | . . . . . . Miscellaneous . | . . . . . . Route ------- -11/Junkyard -10/Materials (discovered 2 exits: *Mat / *Min) -10/Mines -9/Materials -8/Materials (discovered 2 exits: [*Fac] / [*Sto]) -7/Factory History --------- Turn | Location | Event 5 | -11/Junkyard | Discovered new exit (range 13) 12 | -11/Junkyard | Entered Materials 55 | -10/Materials | Discovered new exit (range 11) 95 | -10/Materials | Discovered new exit (range 18) 104 | -10/Materials | Identified exit to Mines 105 | -10/Materials | Entered Mines 114 | -10/Mines | Met a Derelict bent on vengeance 172 | -10/Mines | Received a Mining Laser from a helpful Derelict 211 | -10/Mines | Discovered new exit (range 13) 217 | -10/Mines | Identified exit to Materials 217 | -10/Mines | Entered Materials 2219 | -9/Materials | Discovered new exit (range 10) 2363 | -9/Materials | Entered another Materials area 2796 | -8/Materials | Discovered new exit (range 7) 2801 | -8/Materials | Discovered new exit (range 11) 2812 | -8/Materials | Entered Factory 2888 | -7/Factory | Self-destructed Last Messages --------------- 02790_ Sneak attack on A-02 Transporter. 02790_ A-02 Transporter suffers critical hit (Smash). 02790_ Destroyed Lgt. Treads. 02790_ Destroyed Transport Network Coupler. 02790_ A-02 Transporter system corrupted by crushing effect. 02791_ A-02 Transporter system terminally corrupted. 02794_ O-16 Technician: "IFF HANDSHAKE FAILED. SECURING TERMINAL." 02796_ R-06 Scavenger collects Imp. Sensor Array. 02796_ EXIT=FOUND 02799_ R-06 Scavenger collects Imp. Sensor Array. 02801_ EXIT=FOUND 02802_ Lgt. Treads destroyed. 02802_ Critical hit (Burn: +37). 02803_ R-06 Scavenger collects Imp. Sensor Array. 02806_ R-06 Scavenger collects Corrupted Med. Storage Unit. 02808_ ALERT: Hostiles spotted, dispatching reinforcements to Terminal M011. 02809_ R-06 Scavenger collects Imp. Sensor Array. LOCATION=UNKNOWN GOAL=ESCAPE Map ----- +----------------------------------------------------+ | ?????????????????????????????????????????????????? | | ?????????????????????????????????????????????????? | | ?????????????????????????????????????????????????? | | ???????????????????????#######????#####??????????? | | ???????????????????????? #????# ??????????? | | ??????????????????????? =!!#????#! ????#?????? | | ????????????????????#? =!!#????# """ #?????? | | ????????????????????# "" =!!#????#! """ #?????? | | ??????????????# ???# """ #????# #?????? | | ??????????????+ ???# "F #????# """ #?????? | | ??????????????# ?# """ #????# """ #?????? | | ??????????????# ?# "" #????#* """ #?????? | | ??????????????# #! ] #????# #?????? | | ??????????????# #####+#############+####?????? | | ??????????????# #?????? | | ??????????????# #?????? | | ??????????????# #?????? | | ??????????????# #?????? | | ??????????????# #?????? | | ??????????????# #################?????? | | ???????????#### # ?????????????? | | ?????????? # """" "??????????????? | | ?????????? + """" "??????????????? | | ?????????? # """" "??????????????? | | ?????????? # """" "??????????????? | | ?????????? b # """" ""?????????????? | | ???????????########### # """" """" ?????????? | | ?????????????????????# # #????????? | | ?????????????????????# # #????????? | | ?????????????????????# # #????????? | | ?????????????????????# # #????????? | | ?????????????????????# # #????????? | | ?????????????????????# ##############????????? | | ?????????????????????# #?????????????????????? | | ?????????????????????# #?????????????????????? | | ?????????????????????# #?????????????????????? | | ?????????????????????# +?????????????????????? | | ?????????????????????# #?????????????????????? | | ?????????????????????# ??????????????????????? | | ?????????????????????# ??????????????????????? | | ??????????????????????? ??????????????????????? | | ?????????????????????????????????????????????????? | | ?????????????????????????????????????????????????? | | ?????????????????????????????????????????????????? | | ?????????????????????????????????????????????????? | | ?????????????????????????????????????????????????? | | ?????????????????????????????????????????????????? | | ?????????????????????????????????????????????????? | | ?????????????????????????????????????????????????? | | ?????????????????????????????????????????????????? | +----------------------------------------------------+ Best States ------------- Heat Dissipation 39 Energy Generation 17 Energy Capacity 215 Matter Stores 100 Matter Capacity 100 Sight Range 18 Robot Scan Range 14 Terrain Scan Density 10 Armor Coverage 150 Resistance: EX 50 Resistance: I 25 Resistance: S 25 Evasion (%) 53 Recoil Reduction 2 Item Schematics ----------------- None Robot Schematics ------------------ None Fabricated ------------ Nothing Alien Tech Used ----------------- None Achievements -------------- None Challenges ------------ None Polymind | -11 -10 -10 -9 -8 -7 ---------- Run | Jun Mat Min Mat Mat Fac Hosts 3 | . 1 . 1 1 . Combat Hostiles 2 | . . . 1 1 . Allies . | . . . . . . Unique Host Classes 3 | . 1 . 1 1 . Average Host Suspicion 56 | . 61 38 57 60 9 Unsuspicious Activity 1525 | . 6 . 1499 20 . Returns to Shadow 1 | . . . 1 . . Fuzzy Dispatches . | . . . . . . Protomatter Created 29 | . . . 29 . . Used 58 | . 12 . 23 23 . Decayed . | . . . . . . Highest Spend 23 | . 12 . 23 23 . Top 5 Hosts by Kills: Y-45 Defender (-9/Materials: 9) B-36 Bruiser (-8/Materials: 3) Game ------ Seed TerrainPowerThermoblaster Manual? 0 Play Time 00:10:43 Cumulative 74.8 hours Start 2023.09.04 @ 22:28:44 End 2023.12.15 @ 19:24:23 Sessions 2 Manual Loads 0 Difficulty Rogue Special Mode Winter2022/Polymind Game No. 88 Rogue 87 Adventurer 1 Explorer 0 Win Type - Total 0 Types 0/0/0/0/0/0/0/0/0 Lore% 38 Gallery% 52 Achievement% 44 Wizard Run 0 Options --------- ASCII 0 Keyboard 0 Movement Mouse Keybinds 0 Fullscreen 2 Font 18/SmallcapsGlow Map View 76x50 Tactical HUD 1 Map Filters NONE Filters NONE Steam 1 RUN: 5134151e-f0f0-40e3-9aff-adebebd308bc